bitfinex/quotes_SOLUSD_20241226
["timestamp","ask_amount","ask_price","bid_price","bid_amount"]
[1735201672963,43.15327677,190.41,190.34,43.15327677]
[1735201673273,43.94006135,190.4,190.33,43.15327677]
[1735201673469,43.94006135,190.4,190.32,53.05767677]
[1735201673683,43.15327677,190.39,190.32,43.15327677]
[1735201674000,43.15327677,190.4,190.33,43.15327677]
[1735201674191,0.78678458,190.39,190.34,43.15327677]
[1735201674498,0.78678458,190.39,190.36,43.15327677]
[1735201674679,0.78678458,190.42,190.37,43.27876677]
[1735201674884,0.78678458,190.42,190.37,0.12549]
[1735201675467,0.78678458,190.42,190.37,23.902374]
[1735201675979,43.94006135,190.43,190.37,23.902374]
[1735201676203,0.78678458,190.43,190.37,23.902374]
[1735201677382,43.94006135,190.43,190.37,23.902374]
[1735201678501,43.15327677,190.45,190.37,67.05565077]
[1735201678797,0.78678458,190.44,190.39,23.902374]
[1735201679697,43.94006135,190.44,190.38,0.12549]
[1735201680302,43.15327677,190.42,190.38,0.12549]
[1735201680470,43.94006135,190.41,190.33,43.15327677]
[1735201680675,0.78678458,190.41,190.36,0.12549]
[1735201680972,0.78678458,190.41,190.38,0.12549]
[1735201681171,43.15327677,190.42,190.34,43.15327677]
[1735201681402,24.07392779,190.48,190.32,43.15327677]
[1735201681403,43.15327677,190.39,190.32,43.15327677]
[1735201681570,43.15327677,190.33,190.26,43.15327677]
[1735201681894,0.78678458,190.32,190.24,6.3778]
[1735201682102,0.78678458,190.32,190.25,43.15327677]
[1735201682274,0.78678458,190.32,190.24,6.3778]
[1735201682275,26.56335279,190.34,190.27,26.56335279]
[1735201682476,0.78678458,190.33,190.27,26.56335279]
[1735201683285,0.78678458,190.33,190.26,26.56335279]
[1735201683701,0.78678458,190.33,190.28,0.12549]
[1735201684479,26.56335279,190.32,190.28,0.12549]
[1735201684799,26.56335279,190.32,190.24,6.3778]
[1735201684800,0.78678458,190.31,190.24,6.3778]
[1735201685486,26.56335279,190.3,190.24,6.3778]
[1735201685800,0.78678458,190.29,190.24,6.3778]
[1735201686700,0.78678458,190.29,190.25,0.12549]
[1735201687099,0.78678458,190.29,190.25,23.902374]
[1735201688176,26.56335279,190.34,190.27,0.12549]
[1735201688381,26.56335279,190.35,190.29,0.12549]
[1735201688696,0.78678458,190.34,190.29,0.12549]
[1735201689483,0.78678458,190.35,190.29,0.12549]
[1735201690000,26.56335279,190.32,190.27,23.776884]
[1735201690199,0.78678458,190.31,190.27,23.776884]
[1735201690383,22.35013737,190.32,190.25,23.776884]
[1735201690589,26.56335279,190.33,190.26,0.12549]
[1735201691190,26.56335279,190.31,190.25,50.34023679]
[1735201692101,26.56335279,190.33,190.26,0.12549]
[1735201692280,26.56335279,190.33,190.25,50.34023679]
[1735201692482,26.56335279,190.33,190.25,26.56335279]
[1735201692903,26.56335279,190.31,190.24,6.3778]
[1735201693088,26.56335279,190.27,190.18,32.94115279]
[1735201693483,26.56335279,190.27,190.19,0.12549]
[1735201693683,26.56335279,190.25,190.18,32.94115279]
[1735201693900,26.56335279,190.23,190.14,26.56335279]
[1735201694690,26.56335279,190.19,190.12,6.3593]
[1735201694994,26.56335279,190.18,190.12,6.3593]
[1735201695597,26.56335279,190.16,190.09,26.56335279]
[1735201696506,26.56335279,190.16,190.1,0.12549]
[1735201696708,26.56335279,190.17,190.1,0.12549]
[1735201697014,26.56335279,190.18,190.12,0.12549]
[1735201697382,26.56335279,190.18,190.11,23.902374]
[1735201698110,26.56335279,190.18,190.11,50.46572679]
[1735201698502,20.0,190.25,190.13,0.12549]
[1735201698698,26.56335279,190.19,190.13,0.12549]
[1735201698906,26.56335279,190.2,190.13,26.68884279]
[1735201699099,26.56335279,190.22,190.15,0.12549]
[1735201699296,26.56335279,190.23,190.15,26.68884279]
[1735201699497,26.56335279,190.26,190.19,0.12549]
[1735201699883,26.56335279,190.25,190.19,0.12549]
[1735201700088,26.56335279,190.2,190.07,0.78861783]
[1735201700295,26.56335279,190.2,190.12,26.56335279]
[1735201700496,26.56335279,190.21,190.13,26.56335279]
[1735201700793,26.56335279,190.21,190.06,7.14821402]
[1735201700794,26.56335279,190.18,190.06,19.5125]
[1735201700997,26.56335279,190.18,190.11,26.56335279]
[1735201701405,13.1392,190.27,190.12,0.12549]
[1735201701406,26.56335279,190.19,190.12,0.12549]
[1735201702207,26.56335279,190.19,190.12,26.68884279]
[1735201702410,26.56335279,190.19,190.13,0.12549]
[1735201702909,26.56335279,190.2,190.13,23.902374]
[1735201703112,26.56335279,190.22,190.16,23.776884]
[1735201703290,26.56335279,190.24,190.17,0.12549]
[1735201703638,26.56335279,190.25,190.17,32.79405279]
[1735201703785,26.56335279,190.24,190.18,0.12549]
[1735201704192,26.56335279,190.25,190.18,0.12549]
[1735201704491,26.56335279,190.24,190.18,0.12549]
[1735201704690,26.56335279,190.24,190.17,6.2307]
[1735201704900,26.56335279,190.2,190.17,6.2307]
[1735201705098,26.56335279,190.22,190.15,50.34023679]
[1735201705414,26.56335279,190.2,190.16,0.12549]
[1735201705717,26.56335279,190.19,190.12,32.79405279]
[1735201705925,20.0,190.26,190.17,23.776884]
[1735201706219,26.56335279,190.28,190.22,0.12549]
[1735201706390,3.94642337,190.29,190.22,26.68884279]
[1735201706717,8.96230223,190.3,190.26,0.12549]
[1735201707025,15.11423628,190.34,190.28,0.12549]
[1735201707195,15.11423628,190.34,190.29,26.68884279]
[1735201707519,11.16781291,190.34,190.3,26.56335279]
[1735201707686,11.16781291,190.34,190.32,26.56335279]
[1735201707889,26.56335279,190.37,190.3,26.56335279]
[1735201708089,26.56335279,190.37,190.3,0.12549]
[1735201708488,26.56335279,190.36,190.3,0.12549]
[1735201709089,26.56335279,190.36,190.28,26.56335279]
[1735201709323,26.56335279,190.34,190.26,26.56335279]
[1735201709501,12.92105348,190.42,190.28,26.56335279]
[1735201709706,26.56335279,190.38,190.3,26.56335279]
[1735201709893,26.56335279,190.38,190.31,0.12549]
[1735201710930,26.56335279,190.4,190.32,26.56335279]
[1735201711232,26.56335279,190.4,190.33,0.12549]
[1735201711521,26.56335279,190.4,190.33,23.902374]
[1735201711928,26.56335279,190.4,190.28,13.1383]
[1735201712224,26.56335279,190.38,190.29,23.776884]
[1735201712421,10.1276,190.46,190.32,0.12549]
[1735201712618,26.56335279,190.39,190.32,0.12549]
[1735201712821,26.56335279,190.35,190.29,23.776884]
[1735201713118,26.56335279,190.35,190.26,26.56335279]
[1735201713529,26.56335279,190.35,190.24,6.2307]
[1735201713530,27.99886465,190.45,190.35,0.12549]
[1735201713695,30.50977616,190.44,190.35,0.12549]
[1735201713900,26.56335279,190.42,190.35,0.12549]
[1735201714131,26.56335279,190.42,190.32,26.56335279]
[1735201714297,26.56335279,190.42,190.33,0.12549]
[1735201714504,26.56335279,190.42,190.33,23.902374]
[1735201714835,26.56335279,190.46,190.39,0.12549]
[1735201715141,24.08886639,190.48,190.43,0.12549]
[1735201715296,15.11423628,190.48,190.43,0.12549]
[1735201715496,30.50977616,190.48,190.4,0.12549]
[1735201715724,30.50977616,190.48,190.4,23.902374]
[1735201716035,26.56335279,190.48,190.4,23.902374]
[1735201716402,28.25174754,190.49,190.42,23.776884]
[1735201716619,28.25174754,190.49,190.41,26.56335279]
[1735201716809,26.56335279,190.48,190.41,26.56335279]
[1735201717199,28.25174754,190.49,190.42,23.902374]
[1735201717402,26.56335279,190.46,190.39,26.56335279]
[1735201717932,26.56335279,190.46,190.37,26.56335279]
[1735201718136,28.25174754,190.49,190.36,6.059]
[1735201718137,26.56335279,190.44,190.36,6.059]
[1735201719033,43.42413393,190.49,190.36,6.059]
[1735201719034,46.56335279,190.46,190.37,50.46572679]
[1735201719203,46.56335279,190.46,190.37,26.56335279]
[1735201719406,20.0,190.46,190.37,26.56335279]
[1735201719601,46.56335279,190.46,190.38,0.12549]
[1735201720406,26.56335279,190.46,190.38,0.12549]
[1735201720602,26.56335279,190.46,190.38,23.902374]
[1735201720819,26.56335279,190.46,190.4,0.12549]
[1735201721019,30.50884626,190.48,190.41,26.56335279]
[1735201721226,26.56335279,190.48,190.42,0.12549]
[1735201722112,28.25174754,190.49,190.42,23.902374]
[1735201722325,28.25174754,190.49,190.42,0.12549]
[1735201722840,28.25174754,190.49,190.44,0.12549]
[1735201723023,28.25174754,190.49,190.44,23.902374]
[1735201723208,28.25174754,190.49,190.46,23.902374]
[1735201723408,28.25174754,190.49,190.48,0.12549]
[1735201723673,26.56335279,190.56,190.48,0.12549]
[1735201723805,26.56335279,190.56,190.48,6.61929]
[1735201724213,26.56335279,190.56,190.49,26.56335279]
[1735201724410,26.56335279,190.58,190.52,0.12549]
[1735201724624,26.56335279,190.6,190.54,0.12549]
[1735201725002,26.56335279,190.56,190.49,26.56335279]
[1735201725201,26.56335279,190.54,190.48,6.4938]
[1735201725828,26.56335279,190.6,190.43,26.56335279]
[1735201725829,26.56335279,190.5,190.43,26.56335279]
[1735201726034,26.56335279,190.5,190.41,33.05715279]
[1735201726732,26.56335279,190.46,190.41,6.4938]
[1735201726943,26.56335279,190.42,190.35,6.4938]
[1735201727334,26.56335279,190.4,190.35,6.4938]
[1735201728905,26.56335279,190.41,190.35,6.4938]
[1735201731106,26.56335279,190.39,190.29,16.8745]
[1735201731313,26.56335279,190.35,190.29,6.4938]
[1735201731724,26.56335279,190.33,190.29,6.4938]
[1735201731918,26.56335279,190.33,190.25,26.56335279]
[1735201732120,26.56335279,190.32,190.24,36.94405279]
[1735201732418,26.56335279,190.31,190.24,10.3807]
[1735201732616,26.56335279,190.4,190.23,6.4938]
[1735201732617,26.56335279,190.3,190.23,6.4938]
[1735201732822,26.56335279,190.4,190.23,6.4938]
[1735201732823,26.56335279,190.28,190.23,6.4938]
[1735201733147,26.56335279,190.26,190.19,10.3807]
[1735201733650,26.56335279,190.28,190.21,26.56335279]
[1735201733854,47.8929408,190.39,190.23,26.56335279]
[1735201733855,26.56335279,190.31,190.23,26.56335279]
[1735201734050,26.56335279,190.32,190.25,26.68884279]
[1735201734932,26.56335279,190.31,190.25,0.12549]
[1735201736632,26.56335279,190.31,190.24,26.56335279]
[1735201737347,26.56335279,190.32,190.25,26.56335279]
[1735201737654,26.56335279,190.3,190.23,26.56335279]
[1735201737838,26.56335279,190.3,190.22,26.56335279]
[1735201738033,26.56335279,190.3,190.23,26.56335279]
[1735201738367,26.56335279,190.31,190.24,26.56335279]
[1735201739360,26.56335279,190.31,190.22,26.56335279]
[1735201740654,26.56335279,190.23,190.17,6.4938]
[1735201740838,26.56335279,190.3,190.17,6.4938]
[1735201740839,26.56335279,190.21,190.17,6.4938]
[1735201741165,26.56335279,190.22,190.17,6.4938]
[1735201742830,30.19548183,190.3,190.17,6.4938]
[1735201742831,26.56335279,190.24,190.17,6.4938]
[1735201743033,26.56335279,190.26,190.18,0.12549]
[1735201743230,26.56335279,190.28,190.22,0.12549]
[1735201743431,26.56335279,190.28,190.21,26.56335279]
[1735201743655,26.56335279,190.28,190.19,26.56335279]
[1735201744048,26.56335279,190.28,190.21,26.56335279]
[1735201744243,26.56335279,190.28,190.22,0.12549]
[1735201744439,26.56335279,190.28,190.21,26.56335279]
[1735201744646,26.56335279,190.28,190.19,26.56335279]
[1735201744851,26.56335279,190.28,190.2,0.12549]
[1735201745437,26.56335279,190.28,190.22,0.12549]
[1735201745639,26.56335279,190.28,190.19,26.56335279]
[1735201745838,26.56335279,190.26,190.19,26.56335279]
[1735201746332,26.56335279,190.24,190.17,33.05715279]
[1735201746663,26.56335279,190.3,190.17,6.4938]
[1735201746664,26.56335279,190.22,190.17,6.4938]
[1735201746955,26.56335279,190.18,190.11,32.99195279]
[1735201747128,26.56335279,190.18,190.11,6.4286]
[1735201747329,26.56335279,190.18,190.12,26.56335279]
[1735201747559,26.56335279,190.19,190.12,26.56335279]
[1735201747742,26.56335279,190.19,190.11,32.99195279]
[1735201748063,26.56335279,190.19,190.12,0.12549]
[1735201748572,26.56335279,190.18,190.11,32.99195279]
[1735201748810,26.56335279,190.13,190.06,26.56335279]
[1735201749177,26.56335279,190.14,190.06,26.56335279]
[1735201749377,26.56335279,190.13,190.06,26.56335279]
[1735201749804,26.56335279,190.1,190.05,6.4286]
[1735201751223,26.56335279,190.12,190.05,32.99195279]
[1735201751396,26.56335279,190.13,190.05,32.99195279]
[1735201751907,26.56335279,190.12,190.05,32.99195279]
[1735201752118,26.56335279,190.15,190.08,0.12549]
[1735201752703,26.56335279,190.14,190.08,0.12549]
[1735201752930,26.56335279,190.15,190.08,0.12549]
[1735201753430,26.56335279,190.18,190.11,26.56335279]
[1735201753825,26.56335279,190.17,190.1,26.56335279]
[1735201754010,26.56335279,190.17,190.11,0.12549]
[1735201754629,26.56335279,190.18,190.11,0.12549]
[1735201754817,26.56335279,190.17,190.1,26.56335279]
[1735201755031,26.56335279,190.14,190.07,26.56335279]
[1735201755215,26.56335279,190.14,190.06,26.56335279]
[1735201755540,9.9574,190.24,190.12,0.12549]
[1735201755541,20.0,190.21,190.12,0.12549]
[1735201755705,20.0,190.21,190.11,26.56335279]
[1735201755706,26.56335279,190.19,190.11,26.56335279]
[1735201756315,26.56335279,190.17,190.06,13.1537]
[1735201756517,26.56335279,190.19,190.12,0.12549]
[1735201758234,26.56335279,190.17,190.09,26.56335279]
[1735201758529,26.56335279,190.15,190.07,26.56335279]
[1735201760236,26.56335279,190.15,190.08,0.12549]
[1735201760538,20.0,190.21,190.08,0.12549]
[1735201760539,20.0,190.21,190.09,26.56335279]
[1735201760722,26.56335279,190.18,190.1,0.12549]
[1735201760907,26.56335279,190.16,190.07,26.56335279]
[1735201761516,26.56335279,190.16,190.1,0.12549]
[1735201761721,26.56335279,190.18,190.1,0.12549]
[1735201761937,26.56335279,190.18,190.12,0.12549]
[1735201763238,26.56335279,190.16,190.07,26.56335279]
[1735201763440,26.56335279,190.18,190.09,26.56335279]
[1735201763641,26.56335279,190.18,190.1,0.12549]
[1735201764619,26.56335279,190.14,190.05,32.99195279]
[1735201764819,26.56335279,190.12,190.05,32.99195279]
[1735201765022,26.56335279,190.1,190.05,6.4286]
[1735201767048,13.1447,190.19,190.06,0.12549]
[1735201767049,26.56335279,190.12,190.06,0.12549]
[1735201768532,26.56335279,190.1,190.05,6.4286]
[1735201770739,26.56335279,190.08,190.05,6.4286]
[1735201771043,26.56335279,190.08,190.0,6.3495]
[1735201771265,3.95163318,190.17,190.03,26.56335279]
[1735201771550,3.95163318,190.17,190.01,13.1572]
[1735201771551,26.56335279,190.14,190.07,0.12549]
[1735201771750,26.56335279,190.13,190.07,0.12549]
[1735201773550,26.56335279,190.15,190.07,26.68884279]
[1735201774548,26.56335279,190.16,190.09,23.902374]
[1735201774762,26.56335279,190.17,190.09,26.68884279]
[1735201775054,26.56335279,190.17,190.11,0.12549]
[1735201775449,26.56335279,190.18,190.12,16.3367]
[1735201778160,26.56335279,190.16,190.12,6.3495]
[1735201778542,41.23228993,190.19,190.12,6.3495]
[1735201778773,67.79564272,190.19,190.12,6.3495]
[1735201779045,26.56335279,190.16,190.12,6.3495]
[1735201779833,26.56335279,190.17,190.12,6.3495]
[1735201780132,26.56335279,190.18,190.12,6.3495]
[1735201780333,54.86090672,190.19,190.13,0.12549]
[1735201780543,26.56335279,190.18,190.13,0.12549]
[1735201780756,26.56335279,190.17,190.12,6.3495]
[1735201781053,26.56335279,190.16,190.12,6.3495]
[1735201781630,26.56335279,190.13,190.07,9.9872]
[1735201782848,26.56335279,190.12,190.07,9.9872]
[1735201783159,26.56335279,190.12,190.06,6.3495]
[1735201783651,26.56335279,190.11,190.06,6.3495]
[1735201784653,26.56335279,190.12,190.06,6.3495]
[1735201785053,37.24061811,190.18,190.06,32.91285279]
[1735201785054,26.56335279,190.13,190.06,32.91285279]
[1735201785243,26.56335279,190.12,190.06,6.3495]
[1735201786769,26.56335279,190.15,190.08,26.56335279]
[1735201786936,26.56335279,190.17,190.1,50.46572679]
[1735201787272,15.11211529,190.18,190.13,0.12549]
[1735201787566,3.95163318,190.18,190.13,0.12549]
[1735201787966,3.95163318,190.18,190.12,26.56335279]
[1735201788267,3.95163318,190.18,190.13,26.68884279]
[1735201788667,43.40966922,190.19,190.13,26.68884279]
[1735201788966,43.40966922,190.19,190.13,26.56335279]
[1735201789156,28.29755393,190.19,190.13,26.56335279]
[1735201789565,28.29755393,190.19,190.13,0.12549]
[1735201789566,54.86090672,190.19,190.13,0.12549]
[1735201790230,28.29755393,190.19,190.13,0.12549]
[1735201792156,26.56335279,190.22,190.16,6.6676]
[1735201792365,3.95163318,190.23,190.19,0.12549]
[1735201792754,28.06585178,190.24,190.22,0.12549]
[1735201793069,7.85642163,190.24,190.21,26.56335279]
[1735201793251,20.85700285,190.28,190.22,0.12549]
[1735201793558,20.85700285,190.28,190.24,0.12549]
[1735201793774,20.85700285,190.28,190.26,50.46572679]
[1735201793935,16.90536967,190.28,190.26,50.46572679]
[1735201794137,15.11211529,190.3,190.26,26.68884279]
[1735201794361,15.11211529,190.3,190.26,0.12549]
[1735201794549,3.95163318,190.3,190.26,0.12549]
[1735201794750,13.79806319,190.31,190.26,0.12549]
[1735201795150,13.79806319,190.31,190.24,26.56335279]
[1735201795353,40.36141598,190.31,190.24,26.56335279]
[1735201795555,26.56335279,190.3,190.23,43.20205279]
[1735201795865,13.79806319,190.31,190.24,0.12549]
[1735201795866,26.56335279,190.29,190.24,0.12549]
[1735201796045,26.56335279,190.3,190.24,0.12549]
[1735201796464,26.56335279,190.3,190.23,43.20205279]
[1735201796687,26.56335279,190.28,190.23,16.6387]
[1735201797360,26.56335279,190.27,190.23,16.6387]
[1735201797669,26.56335279,190.25,190.19,9.9711]
[1735201797963,26.56335279,190.22,190.18,6.6676]
[1735201798268,26.56335279,190.23,190.18,6.6676]
[1735201799370,26.56335279,190.21,190.14,36.81565279]
[1735201799671,13.1385,190.28,190.14,10.2523]
[1735201799672,26.56335279,190.2,190.14,10.2523]
[1735201800264,20.0,190.25,190.15,26.56335279]
[1735201800562,26.56335279,190.21,190.14,36.81565279]
[1735201800949,26.56335279,190.2,190.14,10.2523]
[1735201801445,26.56335279,190.22,190.16,0.12549]
[1735201801649,26.56335279,190.25,190.18,26.56335279]
[1735201801868,20.86927535,190.27,190.22,6.1965]
[1735201802058,20.86927535,190.27,190.23,0.12549]
[1735201802255,9.06122054,190.27,190.23,26.68884279]
[1735201802451,35.62457333,190.27,190.22,6.1965]
[1735201802668,26.56335279,190.27,190.22,6.1965]
[1735201802868,26.56335279,190.29,190.22,6.1965]
[1735201803047,41.67546808,190.3,190.23,0.12549]
[1735201803372,3.95163318,190.3,190.28,0.12549]
[1735201803573,11.80805481,190.35,190.3,0.12549]
[1735201803875,3.95163318,190.35,190.3,0.12549]
[1735201804055,3.95163318,190.35,190.29,26.56335279]
[1735201804056,26.56335279,190.34,190.27,26.56335279]
[1735201804255,26.56335279,190.35,190.29,0.12549]
[1735201804459,34.41977442,190.36,190.29,0.12549]
[1735201804671,26.56335279,190.36,190.29,0.12549]
[1735201804985,26.56335279,190.32,190.26,9.9061]
[1735201805183,26.56335279,190.31,190.26,9.9061]
[1735201805783,26.56335279,190.28,190.21,36.46945279]
[1735201806161,26.56335279,190.26,190.21,9.9061]
[1735201806460,26.56335279,190.27,190.21,9.9061]
[1735201806855,26.56335279,190.28,190.21,36.46945279]
[1735201807090,26.56335279,190.29,190.21,36.46945279]
[1735201807392,26.56335279,190.28,190.21,9.9061]
[1735201807682,26.56335279,190.26,190.18,26.56335279]
[1735201807879,26.56335279,190.25,190.18,26.56335279]
[1735201808093,26.56335279,190.26,190.18,26.56335279]
[1735201808391,26.56335279,190.27,190.19,26.56335279]
[1735201809467,15.71284327,190.34,190.16,9.9061]
[1735201809468,26.56335279,190.3,190.23,0.12549]
[1735201809670,26.56335279,190.3,190.22,32.75985279]
[1735201810006,7.85642163,190.34,190.22,6.1965]
[1735201810007,26.56335279,190.28,190.22,6.1965]
[1735201811985,26.56335279,190.29,190.22,6.1965]
[1735201812203,26.56335279,190.3,190.22,32.75985279]
[1735201812359,26.56335279,190.32,190.25,26.56335279]
[1735201812557,26.56335279,190.33,190.26,26.56335279]
[1735201813063,26.56335279,190.34,190.27,0.12549]
[1735201813260,30.51498597,190.36,190.29,26.68884279]
[1735201813500,26.56335279,190.35,190.28,36.38505279]
[1735201813796,26.56335279,190.29,190.22,16.0182]
[1735201813956,26.56335279,190.27,190.22,16.0182]
[1735201814161,26.56335279,190.24,190.17,6.4919]
[1735201814560,26.56335279,190.24,190.17,33.05525279]
[1735201815197,26.56335279,190.25,190.18,26.56335279]
[1735201815897,26.56335279,190.25,190.17,6.4919]
[1735201815898,26.56335279,190.23,190.17,6.4919]
[1735201816075,26.56335279,190.2,190.17,6.4919]
[1735201816271,26.56335279,190.18,190.12,6.4919]
[1735201816867,26.56335279,190.18,190.12,33.05525279]
[1735201817063,26.56335279,190.19,190.13,0.12549]
[1735201817292,26.56335279,190.22,190.15,26.56335279]
[1735201817597,26.56335279,190.24,190.17,26.56335279]
[1735201818168,26.56335279,190.27,190.2,26.56335279]
[1735201818387,41.79529785,190.28,190.21,26.68884279]
[1735201818597,26.56335279,190.22,190.16,0.78842319]
[1735201818770,26.56335279,190.2,190.12,6.4919]
[1735201819076,26.56335279,190.2,190.13,26.56335279]
[1735201819266,3.95163318,190.28,190.14,26.56335279]
[1735201819267,26.56335279,190.21,190.14,26.56335279]
[1735201819890,26.56335279,190.2,190.13,26.68884279]
[1735201820191,26.56335279,190.2,190.13,26.56335279]
[1735201820380,26.56335279,190.2,190.12,33.05525279]
[1735201820802,26.56335279,190.19,190.12,33.05525279]
[1735201821880,20.0,190.23,190.13,26.68884279]
[1735201822080,26.56335279,190.22,190.15,26.56335279]
[1735201822281,26.56335279,190.24,190.18,0.12549]
[1735201822465,26.56335279,190.25,190.18,26.68884279]
[1735201823590,15.23194506,190.28,190.16,26.56335279]
[1735201823897,26.56335279,190.23,190.16,26.56335279]
[1735201824101,26.56335279,190.23,190.17,0.12549]
[1735201824609,26.56335279,190.25,190.17,26.56335279]
[1735201824772,26.56335279,190.24,190.17,26.56335279]
[1735201825097,26.56335279,190.23,190.17,0.12549]
[1735201825395,26.56335279,190.2,190.13,26.56335279]
[1735201825601,3.95163318,190.28,190.12,6.4919]
[1735201825602,26.56335279,190.18,190.12,6.4919]
[1735201825792,26.56335279,190.17,190.12,6.4919]
[1735201826702,26.56335279,190.16,190.12,6.4919]
[1735201827201,26.56335279,190.13,190.07,6.3844]
[1735201827375,26.56335279,190.11,190.07,6.3844]
[1735201827776,26.56335279,190.1,190.07,6.3844]
[1735201827980,26.56335279,190.09,190.07,6.3844]
[1735201828518,26.56335279,190.08,190.02,16.6984]
[1735201828678,26.56335279,190.06,190.02,16.6984]
[1735201828981,26.56335279,190.07,190.02,16.6984]
[1735201829503,20.0,190.14,190.02,16.6984]
[1735201829504,26.56335279,190.06,190.02,16.6984]
[1735201829707,26.56335279,190.03,190.02,6.0505]
[1735201829917,26.56335279,190.03,189.97,9.7167]
[1735201830202,26.56335279,190.02,189.97,9.7167]
[1735201830401,26.56335279,190.1,189.97,9.7167]
[1735201830402,26.56335279,190.01,189.97,9.7167]
[1735201830813,26.56335279,190.1,189.96,6.0505]
[1735201830814,26.56335279,189.99,189.96,6.0505]
[1735201830981,26.56335279,190.0,189.96,6.0505]
[1735201831184,26.56335279,190.01,189.96,6.0505]
[1735201831596,26.56335279,190.02,189.96,6.0505]
[1735201833214,26.56335279,189.98,189.96,6.0505]
[1735201833388,26.56335279,189.97,189.92,9.7167]
[1735201833905,26.06335279,189.97,189.92,9.7167]
[1735201834519,26.56335279,190.01,189.94,26.56335279]
[1735201834680,26.56335279,190.07,190.0,26.56335279]
[1735201835287,26.56335279,190.05,189.98,26.56335279]
[1735201836822,26.56335279,190.04,189.97,26.56335279]
[1735201837527,26.56335279,190.05,189.98,26.56335279]
[1735201837822,26.56335279,190.04,189.97,26.56335279]
[1735201838305,26.56335279,190.05,189.98,26.56335279]
[1735201838503,26.56335279,190.05,189.97,26.56335279]
[1735201838869,26.56335279,190.02,189.95,26.56335279]
[1735201839130,26.56335279,190.01,189.94,26.56335279]
[1735201839428,26.56335279,190.01,189.95,0.12549]
[1735201839623,26.56335279,190.02,189.95,26.68884279]
[1735201839833,26.56335279,190.03,189.97,0.12549]
[1735201839995,12.93028674,190.11,190.0,26.56335279]
[1735201840329,3.95447218,190.1,190.07,26.56335279]
[1735201840509,3.95447218,190.1,190.08,26.56335279]
[1735201840709,3.95447218,190.1,190.04,37.06922925]
[1735201841011,30.51782497,190.1,190.04,9.7167]
[1735201841317,30.51782497,190.1,190.01,6.0505]
[1735201841318,26.56335279,190.08,190.02,0.12549]
[1735201841527,26.56335279,190.07,190.01,6.0505]
[1735201842131,26.56335279,190.1,190.02,26.68884279]
[1735201842334,26.56335279,190.1,190.03,26.56335279]
[1735201842535,26.56335279,190.1,190.02,26.68884279]
[1735201844657,26.56335279,190.06,190.01,6.0505]
[1735201844851,26.56335279,190.05,190.01,6.0505]
[1735201845062,26.56335279,190.04,189.96,6.6731]
[1735201845355,26.56335279,190.0,189.96,6.6731]
[1735201845516,26.56335279,189.99,189.96,6.6731]
[1735201845920,26.56335279,190.0,189.96,6.6731]
[1735201846753,26.56335279,189.98,189.9,33.23645279]
[1735201846930,26.56335279,189.97,189.9,33.23645279]
[1735201847136,26.56335279,189.95,189.9,6.6731]
[1735201847450,26.56335279,189.94,189.9,6.6731]
[1735201848349,26.56335279,189.93,189.86,26.56335279]
[1735201848552,26.56335279,190.0,189.85,6.6731]
[1735201848553,26.56335279,189.95,189.88,26.56335279]
[1735201848757,26.56335279,189.99,189.92,26.56335279]
[1735201848913,26.56335279,190.0,189.93,26.68884279]
[1735201849324,26.06335279,189.99,189.93,0.12549]
[1735201849622,26.06335279,189.99,189.91,26.56335279]
[1735201849825,26.56335279,189.97,189.9,26.56335279]
[1735201850044,26.56335279,189.98,189.91,26.56335279]
[1735201850440,26.56335279,189.99,189.92,26.68884279]
[1735201850950,26.56335279,190.0,189.92,26.68884279]
[1735201851254,26.56335279,189.99,189.92,0.12549]
[1735201851453,26.56335279,189.98,189.91,26.56335279]
[1735201851753,26.56335279,189.98,189.9,26.56335279]
[1735201852556,26.56335279,189.98,189.91,0.12549]
[1735201852763,26.56335279,190.0,189.93,0.12549]
[1735201853173,26.56335279,189.99,189.93,0.12549]
[1735201853461,26.56335279,190.0,189.92,26.56335279]
[1735201854161,26.56335279,189.99,189.92,26.56335279]
[1735201854457,20.0,190.01,189.91,26.56335279]
[1735201854458,26.56335279,189.98,189.91,26.56335279]
[1735201854763,26.56335279,189.97,189.89,26.56335279]
[1735201854928,26.56335279,189.96,189.89,26.56335279]
[1735201855130,26.56335279,189.97,189.89,26.56335279]
[1735201855354,26.56335279,189.98,189.91,26.56335279]
[1735201855564,26.56335279,189.99,189.91,26.56335279]
[1735201856055,26.56335279,189.98,189.91,26.56335279]
[1735201856672,33.1575,190.01,189.91,26.56335279]
[1735201856673,26.56335279,189.99,189.91,26.56335279]
[1735201856963,26.56335279,189.98,189.91,26.56335279]
[1735201857264,26.56335279,189.98,189.9,26.56335279]
[1735201857569,26.56335279,189.97,189.9,26.56335279]